lending/lending_fUSD_20250429
["ID","MTS","AMOUNT","RATE_DAILY","PERIOD"]
[359332584,1745933440739,-470.0,0.00027509,2]
[359332585,1745933440750,-658.53,0.00027509,2]
[359332586,1745933440759,-470.0,0.00027509,2]
[359332587,1745933440768,-470.0,0.00027509,2]
[359332588,1745933440780,-470.0,0.00027509,2]
[359332589,1745933440791,-470.0,0.00027509,2]
[359332590,1745933440801,-470.0,0.00027509,2]
[359332591,1745933440810,-470.0,0.00027509,2]
[359332592,1745933440819,-470.0,0.00027509,2]
[359332593,1745933440829,-3237.38,0.00027509,2]
[359332594,1745933440838,-1296.09,0.00027509,2]
[359332595,1745933440848,-424.6116693,0.00027509,2]
[359332596,1745933440858,-473.87,0.00027509,2]
[359332597,1745933440870,-470.0,0.00027509,2]
[359332598,1745933440879,-470.0,0.00027509,2]
[359332599,1745933440888,-470.0,0.00027509,2]
[359332600,1745933440897,-547.8,0.00027509,2]
[359332601,1745933440906,-832.44,0.00027509,2]
[359332602,1745933440915,-470.0,0.00027509,2]
[359332603,1745933440925,-652.72,0.00027509,2]
[359332604,1745933440934,-470.0,0.00027509,2]
[359332605,1745933440943,-1484.98,0.00027509,2]
[359332606,1745933440952,-970.86,0.00027509,2]
[359332607,1745933440961,-1769.3,0.00027509,2]
[359332608,1745933440970,-470.0,0.00027509,2]
[359332609,1745933440980,-470.0,0.00027509,2]
[359332610,1745933440989,-516.99,0.00027509,2]
[359332611,1745933440998,-470.0,0.00027509,2]
[359332612,1745933441007,-470.0,0.00027509,2]
[359332613,1745933441016,-470.0,0.00027509,2]
[359332614,1745933441025,-470.0,0.00027509,2]
[359332615,1745933441034,-470.0,0.00027509,2]
[359332616,1745933441044,-470.0,0.00027509,2]
[359332617,1745933441053,-794.58,0.00027509,2]
[359332618,1745933441063,-497.04,0.00027509,2]
[359332619,1745933441072,-542.04,0.00027509,2]
[359332620,1745933441082,-470.0,0.00027509,2]
[359332621,1745933441091,-470.0,0.00027509,2]
[359332622,1745933441100,-470.0,0.00027509,2]
[359332623,1745933441109,-470.0,0.00027509,2]
[359332624,1745933441120,-470.0,0.00027509,2]
[359332625,1745933441130,-858.9,0.00027509,2]
[359332626,1745933441140,-470.0,0.00027509,2]
[359332627,1745933441149,-470.0,0.00027509,2]
[359332628,1745933441159,-470.0,0.00027509,2]
[359332629,1745933441168,-470.0,0.00027509,2]
[359332630,1745933441178,-470.0,0.00027509,2]
[359332631,1745933441187,-470.0,0.00027509,2]
[359332632,1745933441197,-470.0,0.00027509,2]
[359332633,1745933441206,-1176.46,0.00027509,2]
[359332634,1745933441216,-470.0,0.00027509,2]
[359332635,1745933441226,-470.0,0.00027509,2]
[359332636,1745933441238,-470.0,0.00027509,2]
[359332637,1745933441249,-470.0,0.00027509,2]
[359332638,1745933441258,-1183.14,0.00027509,2]
[359332639,1745933441267,-470.0,0.00027509,2]
[359332640,1745933441276,-926.58,0.00027509,2]
[359332641,1745933441489,-789.22,0.00027509,2]
[359332642,1745933441501,-470.0,0.00027509,2]
[359332643,1745933441511,-470.0,0.00027509,2]
[359332644,1745933441521,-673.65,0.00027509,2]
[359332645,1745933441531,-470.0,0.00027509,2]
[359332646,1745933441542,-470.0,0.00027509,2]
[359332647,1745933441551,-470.0,0.00027509,2]
[359332648,1745933441560,-695.4,0.00027509,2]
[359332649,1745933441570,-542.51,0.00027509,2]
[359332650,1745933441580,-470.0,0.00027509,2]
[359332651,1745933441591,-470.0,0.00027509,2]
[359332652,1745933441600,-470.0,0.00027509,2]
[359332653,1745933441611,-862.92,0.00027509,2]
[359332654,1745933441621,-470.0,0.00027509,2]
[359332655,1745933441630,-489.53,0.00027509,2]
[359332656,1745933441640,-470.0,0.00027509,2]
[359332657,1745933441650,-470.0,0.00027509,2]
[359332658,1745933441659,-470.0,0.00027509,2]
[359332659,1745933441669,-470.0,0.00027509,2]
[359332660,1745933441680,-470.0,0.00027509,2]
[359332661,1745933441689,-595.26,0.00027509,2]
[359332662,1745933441699,-787.92,0.00027509,2]
[359332663,1745933441713,-470.0,0.00027509,2]
[359332664,1745933441723,-470.0,0.00027509,2]
[359332665,1745933441732,-470.0,0.00027509,2]
[359332666,1745933441742,-704.76,0.00027509,2]
[359332667,1745933441751,-472.15,0.00027509,2]
[359332668,1745933441760,-470.0,0.00027509,2]
[359332669,1745933441770,-470.0,0.00027509,2]
[359332670,1745933441780,-470.0,0.00027509,2]
[359332671,1745933441792,-1120.03,0.00027509,2]
[359332672,1745933441802,-202.04475871,0.00027509,2]
[359332673,1745933441812,-6698.72,0.00027509,2]
[359332674,1745933441822,-470.0,0.00027509,2]
[359332675,1745933441833,-1193.1,0.00027509,2]
[359332676,1745933441843,-470.0,0.00027509,2]
[359332677,1745933441853,-470.0,0.00027509,2]
[359332678,1745933441862,-470.0,0.00027509,2]
[359332679,1745933441872,-470.0,0.00027509,2]
[359332680,1745933441881,-470.0,0.00027509,2]
[359332681,1745933441891,-470.0,0.00027509,2]
[359332682,1745933441902,-484.49,0.00027509,2]
[359332683,1745933441912,-834.05,0.00027509,2]
[359332684,1745933441922,-605.99,0.00027509,2]
[359332685,1745933441931,-470.0,0.00027509,2]
[359332686,1745933441942,-519.28,0.00027509,2]
[359332687,1745933441952,-578.25142515,0.00027509,2]
[359332688,1745933441962,-470.0,0.00027509,2]
[359332689,1745933441971,-733.22,0.00027509,2]
[359332690,1745933441980,-470.0,0.00027509,2]
[359332691,1745933441989,-470.0,0.00027509,2]
[359332692,1745933441998,-2659.48,0.00027509,2]
[359332693,1745933442008,-470.0,0.00027509,2]
[359332694,1745933442017,-470.0,0.00027509,2]
[359332695,1745933442027,-470.0,0.00027509,2]
[359332696,1745933442036,-470.0,0.00027509,2]
[359332697,1745933442046,-620.5,0.00027509,2]
[359332698,1745933442055,-841.15,0.00027509,2]
[359332699,1745933442064,-470.0,0.00027509,2]
[359332700,1745933442073,-470.0,0.00027509,2]
[359332701,1745933442083,-470.0,0.00027509,2]
[359332702,1745933442092,-509.26,0.00027509,2]
[359332703,1745933442101,-486.47,0.00027509,2]
[359332704,1745933442112,-499.61,0.00027509,2]
[359332705,1745933442122,-586.07,0.00027509,2]
[359332706,1745933442131,-552.13,0.00027509,2]
[359332707,1745933442141,-470.0,0.00027509,2]
[359332708,1745933442150,-166.588116,0.00027509,2]
[359332709,1745933442159,-470.0,0.00027509,2]
[359332710,1745933442168,-470.0,0.00027509,2]
[359332711,1745933442178,-470.0,0.00027509,2]
[359332712,1745933442187,-178.856008,0.00027509,2]
[359332713,1745933442196,-853.06,0.00027509,2]
[359332714,1745933442206,-477.61,0.00027509,2]
[359332715,1745933442215,-470.0,0.00027509,2]
[359332716,1745933442224,-5790.91,0.00027509,2]
[359332717,1745933442234,-470.0,0.00027509,2]
[359332718,1745933442243,-470.0,0.00027509,2]
[359332719,1745933442252,-470.0,0.00027509,2]
[359332720,1745933442262,-470.0,0.00027509,2]
[359332721,1745933442271,-470.0,0.00027509,2]
[359332722,1745933442281,-470.0,0.00027509,2]
[359332723,1745933442290,-5351.8,0.00027509,2]
[359332724,1745933442299,-470.0,0.00027509,2]
[359332725,1745933442309,-470.0,0.00027509,2]
[359332726,1745933442319,-470.0,0.00027509,2]
[359332728,1745933442329,-612.79196455,0.00027509,2]
[359332729,1745933442339,-470.0,0.00027509,2]
[359332731,1745933442348,-470.0,0.00027509,2]
[359332733,1745933442358,-11178.27,0.00027509,2]
[359332735,1745933442369,-759.73,0.00027509,2]
[359332737,1745933442379,-543.88,0.00027509,2]
[359332738,1745933442387,-470.0,0.00027509,2]
[359332739,1745933442397,-471.53,0.00027509,2]
[359332740,1745933442407,-470.0,0.00027509,2]
[359332741,1745933442416,-470.0,0.00027509,2]
[359332743,1745933442425,-1840.33,0.00027509,2]
[359332744,1745933442434,-27566.94,0.00027509,2]
[359332745,1745933442443,-470.0,0.00027509,2]
[359332746,1745933442453,-470.0,0.00027509,2]
[359332747,1745933442461,-576.35,0.00027509,2]
[359332748,1745933442471,-470.0,0.00027509,2]
[359332749,1745933442480,-470.0,0.00027509,2]
[359332750,1745933442489,-470.0,0.00027509,2]
[359332751,1745933442498,-470.0,0.00027509,2]
[359332752,1745933442508,-388.54451128,0.00027509,2]
[359332753,1745933442517,-540.93,0.00027509,2]
[359332754,1745933442526,-203.10459811,0.00027509,2]
[359332755,1745933442536,-470.0,0.00027509,2]
[359332756,1745933442546,-553.15,0.00027509,2]
[359332757,1745933442555,-470.0,0.00027509,2]
[359332758,1745933442564,-534.77300255,0.0002751,2]
[359332759,1745933442574,-470.0,0.0002751,2]
[359332760,1745933442583,-940.1,0.0002751,2]
[359332761,1745933442592,-470.0,0.0002751,2]
[359332762,1745933442602,-470.0,0.0002751,2]
[359332763,1745933442612,-470.0,0.0002751,2]
[359332764,1745933442622,-400.0,0.0002751,2]
[359332765,1745933442631,-470.0,0.0002751,2]
[359332766,1745933442640,-470.0,0.0002751,2]
[359332767,1745933442650,-400.0,0.0002751,2]
[359332768,1745933442659,-470.0,0.0002751,2]
[359332769,1745933442669,-470.0,0.0002751,2]
[359332770,1745933442678,-470.0,0.0002751,2]
[359332771,1745933442688,-470.0,0.0002751,2]
[359332772,1745933442697,-470.0,0.0002751,2]
[359332773,1745933442710,-470.0,0.0002751,2]
[359332774,1745933442720,-150.17896157,0.0002751,2]
[359332775,1745933442730,-470.0,0.0002751,2]
[359332776,1745933442739,-470.0,0.0002751,2]
[359332777,1745933442750,-470.0,0.0002751,2]
[359332778,1745933442759,-470.0,0.0002751,2]
[359332779,1745933442769,-736.04,0.0002751,2]
[359332780,1745933442778,-500.0,0.0002751,2]
[359332782,1745933442789,-400.0,0.0002751,2]
[359332783,1745933442798,-470.0,0.0002751,2]
[359332785,1745933442807,-470.0,0.0002751,2]
[359332788,1745933442817,-169.49164967,0.0002751,2]
[359332791,1745933442826,-470.0,0.0002751,2]
[359332793,1745933442835,-470.0,0.0002751,2]
[359332796,1745933442844,-470.0,0.0002751,2]
[359332797,1745933442854,-482.56,0.0002751,2]
[359332798,1745933442864,-555.3,0.0002751,2]
[359332800,1745933442875,-470.0,0.0002751,2]
[359332801,1745933442884,-470.0,0.0002751,2]
[359332802,1745933442893,-537.22,0.0002751,2]
[359332803,1745933442903,-470.0,0.0002751,2]
[359332804,1745933442912,-470.0,0.0002751,2]
[359332805,1745933442922,-470.0,0.0002751,2]
[359332806,1745933442932,-470.0,0.0002751,2]
[359332807,1745933442941,-470.0,0.0002751,2]
[359332808,1745933442951,-470.0,0.0002751,2]
[359332809,1745933442960,-470.0,0.0002751,2]
[359332810,1745933442970,-470.0,0.0002751,2]
[359332811,1745933442980,-470.0,0.0002751,2]
[359332812,1745933442990,-470.0,0.0002751,2]
[359332813,1745933442999,-400.0,0.0002751,2]
[359332814,1745933443009,-470.0,0.0002751,2]
[359332815,1745933443020,-470.0,0.0002751,2]
[359332817,1745933443030,-470.0,0.0002751,2]
[359332818,1745933443040,-470.0,0.0002751,2]
[359332819,1745933443050,-500.0,0.0002751,2]
[359332820,1745933443060,-470.0,0.0002751,2]
[359332821,1745933443070,-470.0,0.0002751,2]
[359332822,1745933443080,-490.52,0.0002751,2]
[359332823,1745933443090,-583.9,0.0002751,2]
[359332824,1745933443099,-470.0,0.0002751,2]
[359332825,1745933443109,-470.0,0.0002751,2]
[359332826,1745933443119,-470.0,0.0002751,2]
[359332827,1745933443130,-1431.35,0.0002751,2]
[359332828,1745933443139,-4595.48,0.0002751,2]
[359332829,1745933443149,-1556.327,0.0002752,16]
[359332830,1745933443158,-215.0738,0.00027533,2]
[359332831,1745933443167,-500.0,0.00027573,5]
[359332832,1745933443176,-256.64092137,0.00027573,5]
[359332833,1745933443186,-459.34394019,0.00027573,2]
[359332834,1745933443195,-29948.8602634,0.00027583,2]
[359332835,1745933443205,-1534.77666023,0.00027592,2]
[359332836,1745933443214,-29948.8602634,0.00027593,2]
[359332837,1745933443223,-470.0,0.00027603,2]
[359332838,1745933443233,-560.62,0.00027603,2]
[359332840,1745933443242,-542.39,0.00027603,2]
[359332842,1745933443251,-470.0,0.00027603,2]
[359332844,1745933443261,-470.0,0.00027603,2]
[359332846,1745933443270,-470.0,0.00027603,2]
[359332848,1745933443279,-470.0,0.00027603,2]
[359332850,1745933443288,-250.0,0.00027603,2]
[359332852,1745933443298,-470.0,0.00027603,2]
[359332854,1745933443307,-368.02539225,0.00027603,2]
[359332856,1745933443317,-470.0,0.00027603,2]
[359332858,1745933443326,-443.00635843,0.00027603,2]
[359332860,1745933443335,-470.0,0.00027603,2]
[359332861,1745933443345,-470.0,0.00027603,2]
[359332863,1745933443354,-493.35177416,0.00027603,2]
[359332866,1745933443364,-470.0,0.00027603,2]
[359332869,1745933443374,-355.08129011,0.00027603,2]
[359332872,1745933443383,-470.0,0.00027603,2]
[359332873,1745933443392,-676.99,0.00027603,2]
[359332875,1745933443401,-470.0,0.00027603,2]
[359332877,1745933443410,-470.0,0.00027603,2]
[359332879,1745933443420,-470.0,0.00027603,2]
[359332881,1745933443430,-470.0,0.00027603,2]
[359332883,1745933443439,-470.0,0.00027603,2]
[359332885,1745933443449,-470.0,0.00027603,2]
[359332887,1745933443458,-470.0,0.00027603,2]
[359332889,1745933443467,-470.0,0.00027603,2]
[359332891,1745933443476,-470.0,0.00027603,2]
[359332893,1745933443485,-470.0,0.00027603,2]
[359332895,1745933443495,-470.0,0.00027603,2]
[359332897,1745933443504,-586.02,0.00027603,2]
[359332899,1745933443514,-470.0,0.00027603,2]
[359332901,1745933443523,-470.0,0.00027603,2]
[359332903,1745933443533,-470.0,0.00027603,2]
[359332905,1745933443543,-470.0,0.00027603,2]
[359332907,1745933443552,-470.0,0.00027603,2]
[359332909,1745933443561,-470.0,0.00027603,2]
[359332911,1745933443570,-470.0,0.00027603,2]
[359332913,1745933443579,-470.0,0.00027603,2]
[359332915,1745933443588,-470.0,0.00027603,2]
[359332917,1745933443598,-591.12,0.00027603,2]
[359332919,1745933443607,-558.94,0.00027603,2]
[359332921,1745933443617,-470.0,0.00027603,2]
[359332923,1745933443626,-470.0,0.00027603,2]
[359332925,1745933443636,-470.0,0.00027603,2]
[359332927,1745933443645,-470.0,0.00027603,2]
[359332929,1745933443654,-470.0,0.00027603,2]
[359332931,1745933443663,-470.0,0.00027603,2]
[359332933,1745933443673,-460.98097141,0.00027603,2]
[359332935,1745933443682,-353.25574058,0.00027603,2]
[359332937,1745933443692,-470.0,0.00027603,2]
[359332939,1745933443705,-470.0,0.00027603,2]
[359332941,1745933443715,-470.0,0.00027603,2]
[359332943,1745933443724,-470.0,0.00027603,2]
[359332945,1745933443734,-470.0,0.00027603,2]
[359332947,1745933443744,-470.0,0.00027603,2]
[359332949,1745933443753,-470.0,0.00027603,2]
[359332951,1745933443763,-470.0,0.00027603,2]
[359332953,1745933443773,-470.0,0.00027603,2]
[359332955,1745933443782,-470.0,0.00027603,2]
[359332957,1745933443792,-470.0,0.00027603,2]
[359332959,1745933443802,-470.0,0.00027603,2]
[359332960,1745933443811,-470.0,0.00027603,2]
[359332962,1745933443821,-470.0,0.00027603,2]
[359332965,1745933443831,-470.0,0.00027603,2]
[359332966,1745933443840,-470.0,0.00027603,2]
[359332968,1745933443849,-470.0,0.00027603,2]
[359332971,1745933443859,-470.0,0.00027603,2]
[359332972,1745933443870,-470.0,0.00027603,2]
[359332974,1745933443879,-470.0,0.00027603,2]
[359332977,1745933443889,-470.0,0.00027603,2]
[359332978,1745933443898,-503.63,0.00027603,2]
[359332980,1745933443907,-470.0,0.00027603,2]
[359332982,1745933443916,-470.0,0.00027603,2]
[359332984,1745933443925,-470.0,0.00027603,2]
[359332986,1745933443936,-470.0,0.00027603,2]
[359332988,1745933443945,-470.0,0.00027603,2]
[359332990,1745933443956,-470.0,0.00027603,2]
[359332992,1745933443965,-470.0,0.00027603,2]
[359332994,1745933443974,-470.0,0.00027603,2]
[359332996,1745933443983,-222.61871063,0.00027603,2]
[359332998,1745933443992,-470.0,0.00027603,2]
[359333000,1745933444001,-470.0,0.00027603,2]
[359333002,1745933444010,-440.66919659,0.00027603,2]
[359333004,1745933444019,-470.0,0.00027603,2]
[359333006,1745933444029,-470.0,0.00027603,2]
[359333007,1745933444037,-470.0,0.00027603,2]
[359333009,1745933444047,-470.0,0.00027603,2]
[359333011,1745933444056,-470.0,0.00027603,2]
[359333013,1745933444065,-470.0,0.00027603,2]
[359333015,1745933444075,-470.0,0.00027603,2]
[359333017,1745933444084,-470.0,0.00027603,2]
[359333019,1745933444093,-1791.67,0.00027603,2]
[359333021,1745933444102,-470.0,0.00027603,2]
[359333023,1745933444111,-470.0,0.00027603,2]
[359333025,1745933444121,-470.0,0.00027603,2]
[359333027,1745933444130,-470.0,0.00027603,2]
[359333029,1745933444139,-470.0,0.00027603,2]
[359333031,1745933444148,-470.0,0.00027603,2]
[359333033,1745933444158,-470.0,0.00027603,2]
[359333035,1745933444167,-545.10082957,0.00027603,2]
[359333037,1745933444176,-470.0,0.00027603,2]
[359333039,1745933444186,-470.0,0.00027603,2]
[359333041,1745933444196,-470.0,0.00027603,2]
[359333042,1745933444205,-470.0,0.00027603,2]
[359333044,1745933444215,-470.0,0.00027603,2]
[359333046,1745933444224,-470.0,0.00027603,2]
[359333048,1745933444234,-470.0,0.00027603,2]
[359333050,1745933444243,-470.0,0.00027603,2]
[359333052,1745933444252,-470.0,0.00027603,2]
[359333054,1745933444262,-470.0,0.00027603,2]
[359333056,1745933444271,-470.0,0.00027603,2]
[359333058,1745933444281,-470.0,0.00027603,2]
[359333060,1745933444291,-470.0,0.00027603,2]
[359333062,1745933444301,-528.75,0.00027603,2]
[359333064,1745933444311,-470.0,0.00027603,2]
[359333066,1745933444321,-470.0,0.00027603,2]
[359333068,1745933444330,-507.92578813,0.00027603,2]
[359333070,1745933444339,-470.0,0.00027603,2]
[359333072,1745933444348,-364.12742217,0.00027603,2]
[359333074,1745933444357,-470.0,0.00027603,2]
[359333076,1745933444367,-470.0,0.00027603,2]
[359333078,1745933444376,-470.0,0.00027603,2]
[359333080,1745933444385,-570.88,0.00027603,2]
[359333082,1745933444394,-470.0,0.00027603,2]
[359333084,1745933444403,-417.84237191,0.00027603,2]
[359333086,1745933444412,-513.25,0.00027603,2]
[359333088,1745933444421,-470.0,0.00027603,2]
[359333089,1745933444431,-212.01735173,0.00027603,2]
[359333091,1745933444440,-470.0,0.00027603,2]
[359333093,1745933444449,-373.01405094,0.00027603,2]
[359333095,1745933444458,-470.0,0.00027603,2]
[359333097,1745933444467,-470.0,0.00027603,2]
[359333099,1745933444476,-470.0,0.00027603,2]
[359333101,1745933444486,-470.0,0.00027603,2]
[359333102,1745933444495,-470.0,0.00027603,2]
[359333103,1745933444504,-470.0,0.00027603,2]
[359333104,1745933444514,-470.0,0.00027603,2]
[359333105,1745933444523,-470.0,0.00027603,2]
[359333106,1745933444533,-470.0,0.00027603,2]
[359333107,1745933444542,-470.0,0.00027603,2]
[359333108,1745933444552,-470.0,0.00027603,2]
[359333109,1745933444561,-470.0,0.00027603,2]
[359333110,1745933444570,-470.0,0.00027603,2]
[359333111,1745933444579,-470.0,0.00027603,2]
[359333112,1745933444588,-470.0,0.00027603,2]
[359333113,1745933444598,-470.0,0.00027603,2]
[359333114,1745933444608,-470.0,0.00027603,2]
[359333115,1745933444620,-470.0,0.00027603,2]
[359333116,1745933444629,-1270.36,0.00027603,2]
[359333117,1745933444638,-470.0,0.00027603,2]
[359333118,1745933444647,-441.86458168,0.00027603,2]
[359333119,1745933444656,-470.0,0.00027603,2]
[359333120,1745933444666,-470.0,0.00027603,2]
[359333121,1745933444676,-470.0,0.00027603,2]
[359333122,1745933444685,-470.0,0.00027603,2]
[359333123,1745933444694,-470.0,0.00027603,2]
[359333124,1745933444703,-470.0,0.00027603,2]
[359333125,1745933444716,-470.0,0.00027603,2]
[359333127,1745933444725,-470.0,0.00027603,2]
[359333128,1745933444735,-434.13352987,0.00027603,2]
[359333130,1745933444743,-470.0,0.00027603,2]
[359333132,1745933444754,-470.0,0.00027603,2]
[359333134,1745933444763,-470.0,0.00027603,2]
[359333136,1745933444773,-232.4,0.00027603,2]
[359333138,1745933444782,-1006.38,0.00027603,2]
[359333140,1745933444792,-470.0,0.00027603,2]
[359333142,1745933444802,-470.0,0.00027603,2]
[359333145,1745933444811,-470.0,0.00027603,2]
[359333147,1745933444820,-470.0,0.00027603,2]
[359333149,1745933444829,-824.6,0.00027603,2]
[359333151,1745933444839,-525.83,0.00027603,2]
[359333153,1745933444848,-470.0,0.00027603,2]
[359333155,1745933444857,-470.0,0.00027603,2]
[359333157,1745933444867,-470.0,0.00027603,2]
[359333168,1745933445060,-470.0,0.00027603,2]
[359333169,1745933445070,-470.0,0.00027603,2]
[359333170,1745933445080,-470.0,0.00027603,2]
[359333171,1745933445089,-470.0,0.00027603,2]
[359333172,1745933445098,-470.0,0.00027603,2]
[359333173,1745933445107,-470.0,0.00027603,2]
[359333174,1745933445118,-470.0,0.00027603,2]
[359333175,1745933445128,-470.0,0.00027603,2]
[359333176,1745933445138,-470.0,0.00027603,2]
[359333177,1745933445147,-470.0,0.00027603,2]
[359333178,1745933445157,-557.9,0.00027603,2]
[359333179,1745933445166,-552.76,0.00027603,2]
[359333180,1745933445179,-499.68,0.00027603,2]
[359333181,1745933445189,-470.0,0.00027603,2]
[359333182,1745933445199,-470.0,0.00027603,2]
[359333183,1745933445208,-470.0,0.00027603,2]
[359333184,1745933445218,-470.0,0.00027603,2]
[359333185,1745933445228,-470.0,0.00027603,2]
[359333186,1745933445238,-470.0,0.00027603,2]
[359333187,1745933445249,-470.0,0.00027603,2]
[359333188,1745933445259,-470.0,0.00027603,2]
[359333189,1745933445269,-470.0,0.00027603,2]
[359333190,1745933445278,-470.0,0.00027603,2]
[359333193,1745933445288,-470.0,0.00027603,2]
[359333194,1745933445298,-470.0,0.00027603,2]
[359333195,1745933445309,-573.16,0.00027603,2]
[359333196,1745933445320,-470.0,0.00027603,2]
[359333197,1745933445331,-638.0,0.00027603,2]
[359333198,1745933445340,-470.0,0.00027603,2]
[359333199,1745933445350,-470.0,0.00027603,2]
[359333200,1745933445359,-300.0,0.00027603,2]
[359333201,1745933445369,-470.0,0.00027603,2]
[359333202,1745933445379,-470.0,0.00027603,2]
[359333203,1745933445388,-470.0,0.00027603,2]
[359333204,1745933445398,-470.0,0.00027603,2]
[359333205,1745933445408,-470.0,0.00027603,2]
[359333206,1745933445418,-470.0,0.00027603,2]
[359333207,1745933445427,-470.0,0.00027603,2]
[359333208,1745933445437,-470.0,0.00027603,2]
[359333209,1745933445447,-470.0,0.00027603,2]
[359333210,1745933445456,-470.0,0.00027603,2]
[359333211,1745933445466,-158.06644379,0.00027603,2]
[359333213,1745933445476,-470.0,0.00027603,2]
[359333215,1745933445486,-470.0,0.00027603,2]
[359333217,1745933445495,-470.0,0.00027603,2]
[359333219,1745933445505,-470.0,0.00027603,2]
[359333221,1745933445515,-151.0,0.00027604,7]
[359333223,1745933445525,-151.0,0.00027604,7]
[359333225,1745933445535,-151.0,0.00027604,7]
[359333227,1745933445546,-470.0,0.00027604,2]
[359333229,1745933445557,-470.0,0.00027604,2]
[359333231,1745933445566,-302.96644181,0.00027604,2]
[359333233,1745933445577,-29948.8602634,0.00027604,2]
[359333235,1745933445586,-166.071266,0.00027605,7]
[359333237,1745933445596,-349.54451,0.00027614,7]
[359333239,1745933445605,-349.54451,0.00027614,7]
[359333241,1745933445615,-151.0,0.00027614,7]
[359333243,1745933445625,-151.0,0.00027615,7]
[359333245,1745933445635,-151.0,0.00027615,7]
[359333246,1745933445644,-349.54451,0.00027615,7]
[359333247,1745933445654,-349.54451,0.00027615,7]
[359333248,1745933445663,-349.54451,0.00027615,7]
[359333249,1745933445673,-349.54451,0.00027615,7]
[359333250,1745933445683,-349.54451,0.00027615,7]
[359333251,1745933445694,-349.54451,0.00027615,7]
[359333252,1745933445706,-151.0,0.00027615,7]
[359333253,1745933445719,-158.297058,0.00027615,7]
[359333254,1745933445731,-500.0,0.00027624,2]
[359333255,1745933445742,-500.0,0.00027624,2]
[359333256,1745933445754,-500.0,0.00027624,2]
[359333257,1745933445763,-500.0,0.00027624,2]
[359333258,1745933445773,-500.0,0.00027624,2]
[359333259,1745933445784,-500.0,0.00027624,2]
[359333260,1745933445794,-500.0,0.00027624,2]
[359333261,1745933445804,-151.0,0.00027625,7]
[359333262,1745933445814,-500.0,0.00027625,2]
[359333263,1745933445824,-482.75063976,0.00027631,2]
[359333264,1745933445834,-500.0,0.00027634,2]
[359333265,1745933445843,-500.0,0.00027634,2]
[359333266,1745933445852,-500.0,0.00027634,2]
[359333267,1745933445862,-500.0,0.00027634,2]
[359333268,1745933445873,-500.0,0.00027634,2]
[359333269,1745933445883,-500.0,0.00027644,2]
[359333270,1745933445894,-500.0,0.00027645,2]
[359333271,1745933445905,-500.0,0.00027645,2]
[359333272,1745933445917,-318.81715013,0.00027645,2]
[359333273,1745933445927,-349.54451,0.00027645,7]
[359333274,1745933445937,-349.54451,0.00027645,7]
[359333275,1745933445947,-242.28311564,0.00027645,2]